fUST/lending_fUST_20240711
["ID","MTS","AMOUNT","RATE_DAILY","PERIOD"]
[331683028,1720635039045,-500.0,0.00032876,7]
[331683029,1720635039055,-500.0,0.00032876,7]
[331683030,1720635039064,-500.0,0.00032876,7]
[331683031,1720635039075,-500.0,0.00032876,2]
[331683032,1720635039084,-500.0,0.00032876,7]
[331683033,1720635039095,-504.94315929,0.00032876,7]
[331683034,1720635039104,-500.0,0.00032876,7]
[331683035,1720635039114,-500.0,0.00032876,7]
[331683036,1720635039123,-500.0,0.00032876,7]
[331683037,1720635039133,-396.90271777,0.00032876,7]
[331683038,1720635039144,-500.0,0.00032876,7]
[331683039,1720635039154,-506.08824838,0.00032876,7]
[331683040,1720635039164,-690.4,0.00032876,7]
[331683041,1720635039174,-713.72,0.00032876,7]
[331683042,1720635039184,-500.0,0.00032876,7]
[331683043,1720635039194,-500.0,0.00032876,7]
[331683044,1720635039205,-501.61520268,0.00032876,7]
[331683045,1720635039216,-500.0,0.00032876,7]
[331683046,1720635039226,-500.0,0.00032876,7]
[331683047,1720635039236,-500.0,0.00032876,7]
[331683048,1720635039246,-500.0,0.00032876,7]
[331683049,1720635039256,-500.0,0.00032876,7]
[331683050,1720635039267,-483.05671873,0.00032876,7]
[331683051,1720635039277,-500.0,0.00032876,7]
[331683052,1720635039287,-645.67381914,0.00032876,7]
[331683053,1720635039297,-500.0,0.00032876,7]
[331683054,1720635039307,-500.0,0.00032876,7]
[331683055,1720635039317,-500.0,0.00032876,7]
[331683056,1720635039327,-500.0,0.00032876,7]
[331683057,1720635039337,-500.0,0.00032876,7]
[331683058,1720635039347,-500.0,0.00032876,7]
[331683059,1720635039357,-500.0,0.00032876,7]
[331683060,1720635039367,-1003.29,0.00032876,7]
[331683061,1720635039377,-500.0,0.00032876,7]
[331683062,1720635039388,-500.0,0.00032876,7]
[331683063,1720635039398,-500.0,0.00032876,7]
[331683064,1720635039409,-518.20138431,0.00032876,7]
[331683065,1720635039419,-511.07806878,0.00032876,7]
[331683066,1720635039430,-1179.7,0.00032876,7]
[331683067,1720635039441,-500.0,0.00032876,7]
[331683068,1720635039453,-500.0,0.00032876,7]
[331683069,1720635039464,-203.9096706,0.00032876,7]
[331683070,1720635039475,-500.0,0.00032876,7]
[331683071,1720635039485,-500.0,0.00032876,7]
[331683072,1720635039496,-2085.33,0.00032876,7]
[331683073,1720635039507,-423.54628194,0.00032876,7]
[331683074,1720635039517,-233.31911152,0.00032876,7]
[331683075,1720635039527,-500.0,0.00032876,7]
[331683076,1720635039538,-500.0,0.00032876,7]
[331683077,1720635039548,-500.0,0.00032876,7]
[331683078,1720635039558,-500.0,0.00032876,7]
[331683079,1720635039568,-567.63485176,0.00032876,7]
[331683080,1720635039579,-5071.86,0.00032876,7]
[331683081,1720635039589,-500.0,0.00032876,7]
[331683082,1720635039599,-500.0,0.00032876,7]
[331683083,1720635039608,-796.53,0.00032876,7]
[331683084,1720635039618,-500.0,0.00032876,7]
[331683085,1720635039628,-958.45,0.00032876,7]
[331683086,1720635039638,-500.0,0.00032876,7]
[331683087,1720635039648,-1500.0,0.00032876,7]
[331683088,1720635039658,-1085.46,0.00032876,7]
[331683089,1720635039669,-569.1,0.00032876,7]
[331683090,1720635039678,-1442.2,0.00032876,7]
[331683091,1720635039688,-491.79553907,0.00032876,7]
[331683092,1720635039698,-839.66,0.00032876,7]
[331683093,1720635039707,-500.0,0.00032876,7]
[331683094,1720635039717,-714.71,0.00032876,7]
[331683095,1720635039727,-548.91075678,0.00032876,7]
[331683096,1720635039736,-723.37,0.00032876,7]
[331683097,1720635039745,-552.09,0.00032876,7]
[331683098,1720635039755,-500.0,0.00032876,7]
[331683099,1720635039764,-350.03577873,0.00032876,7]
[331683100,1720635039774,-500.0,0.00032876,7]
[331683101,1720635039783,-852.17,0.00032876,7]
[331683102,1720635039793,-529.86589719,0.00032876,7]
[331683103,1720635039803,-500.0006609,0.00032876,7]
[331683104,1720635039812,-500.0,0.00032876,7]
[331683105,1720635039823,-500.0,0.00032876,7]
[331683106,1720635039832,-500.0,0.00032876,7]
[331683107,1720635039841,-502.73946256,0.00032876,7]
[331683108,1720635039851,-583.1512659,0.00032876,7]
[331683109,1720635039861,-500.0,0.00032876,7]
[331683110,1720635039870,-500.0,0.00032876,7]
[331683111,1720635039880,-500.0,0.00032876,7]
[331683112,1720635039889,-500.0,0.00032876,7]
[331683113,1720635039899,-509.82568594,0.00032876,7]
[331683114,1720635039908,-516.65663321,0.00032876,7]
[331683115,1720635039918,-523.03987634,0.00032876,7]
[331683116,1720635039927,-535.39194579,0.00032876,7]
[331683117,1720635039936,-500.0,0.00032876,7]
[331683118,1720635039946,-551.50224524,0.00032876,7]
[331683119,1720635039956,-500.0,0.00032876,7]
[331683120,1720635039965,-500.0,0.00032876,7]
[331683121,1720635039975,-500.0,0.00032876,7]
[331683122,1720635039984,-500.0,0.00032876,7]
[331683123,1720635039994,-500.0,0.00032876,7]
[331683124,1720635040003,-631.13,0.00032876,7]
[331683125,1720635040013,-500.0,0.00032876,7]
[331683126,1720635040023,-500.0,0.00032876,7]
[331683128,1720635040032,-349.1670993,0.00032876,7]
[331683130,1720635040041,-326.22437545,0.00032876,7]
[331683131,1720635040051,-500.0,0.00032876,7]
[331683132,1720635040060,-500.0,0.00032876,7]
[331683133,1720635040070,-549.53602772,0.00032876,7]
[331683134,1720635040081,-500.0,0.00032876,7]
[331683135,1720635040090,-500.0,0.00032876,7]
[331683136,1720635040100,-1318.58,0.00032876,2]
[331683137,1720635040110,-1318.58,0.00032876,2]
[331683138,1720635040120,-1318.58,0.00032876,2]
[331683140,1720635040130,-1318.58,0.00032876,2]
[331683141,1720635040141,-1318.58,0.00032876,2]
[331683142,1720635040151,-1318.58,0.00032876,2]
[331683143,1720635040162,-1318.58,0.00032876,2]
[331683144,1720635040173,-1318.58,0.00032876,2]
[331683145,1720635040183,-1318.58,0.00032876,2]
[331683146,1720635040198,-1318.58,0.00032876,2]
[331683147,1720635040212,-3837.2,0.00032876,7]
[331683148,1720635040223,-500.0,0.00032876,7]
[331683149,1720635040233,-500.0,0.00032876,7]
[331683150,1720635040244,-2057.17,0.00032876,7]
[331683152,1720635040254,-500.0,0.00032876,7]
[331683154,1720635040264,-500.0,0.00032876,7]
[331683155,1720635040274,-655.71,0.00032876,7]
[331683157,1720635040285,-500.0,0.00032876,7]
[331683158,1720635040296,-225.16732668,0.00032876,7]
[331683159,1720635040306,-647.82142921,0.00032876,7]
[331683160,1720635040316,-500.0,0.00032876,7]
[331683161,1720635040326,-411.77203336,0.00032876,7]
[331683162,1720635040336,-500.0,0.00032876,7]
[331683163,1720635040346,-500.0,0.00032876,7]
[331683164,1720635040355,-500.0,0.00032876,7]
[331683166,1720635040365,-1860.1,0.00032876,7]
[331683168,1720635040375,-512.89456019,0.00032876,7]
[331683170,1720635040384,-3472.78,0.00032876,7]
[331683172,1720635040394,-873.33,0.00032876,7]
[331683174,1720635040404,-500.0,0.00032876,7]
[331683176,1720635040414,-10162.39,0.00032876,7]
[331683178,1720635040423,-545.2236247,0.00032876,7]
[331683180,1720635040434,-500.0,0.00032876,7]
[331683182,1720635040445,-169.95444653,0.00032876,7]
[331683184,1720635040455,-641.75,0.00032876,7]
[331683186,1720635040465,-190.54055537,0.00032876,7]
[331683188,1720635040475,-679.38,0.00032876,7]
[331683190,1720635040484,-567.85658483,0.00032876,7]
[331683192,1720635040493,-636.83771669,0.00032876,7]
[331683194,1720635040503,-223.40288364,0.00032876,7]
[331683196,1720635040512,-762.95,0.00032876,7]
[331683197,1720635040522,-507.54966602,0.00032876,7]
[331683199,1720635040531,-1019.48,0.00032876,7]
[331683201,1720635040540,-1019.48,0.00032876,7]
[331683202,1720635040550,-1019.48,0.00032876,7]
[331683203,1720635040558,-1019.48,0.00032876,7]
[331683204,1720635040567,-1019.48,0.00032876,7]
[331683205,1720635040576,-1019.48,0.00032876,7]
[331683206,1720635040585,-372.87948702,0.00032876,7]
[331683207,1720635040595,-1019.48,0.00032876,7]
[331683208,1720635040604,-1019.48,0.00032876,7]
[331683209,1720635040614,-1019.48,0.00032876,7]
[331683210,1720635040624,-1236.74,0.00032876,7]
[331683211,1720635040634,-1019.48,0.00032876,7]
[331683212,1720635040643,-1019.48,0.00032876,7]
[331683213,1720635040652,-1019.48,0.00032876,7]
[331683214,1720635040661,-1019.48,0.00032876,7]
[331683215,1720635040671,-477.16209449,0.00032876,7]
[331683216,1720635040680,-500.0,0.00032876,7]
[331683217,1720635040689,-500.0,0.00032876,2]
[331683218,1720635040699,-703.62,0.00032876,7]
[331683219,1720635040709,-500.0,0.00032876,7]
[331683220,1720635040718,-500.0,0.00032876,7]
[331683221,1720635040728,-500.0,0.00032876,7]
[331683222,1720635040737,-500.0,0.00032876,2]
[331683223,1720635040745,-2011.79,0.00032876,4]
[331683224,1720635040755,-500.0,0.00032876,2]
[331683225,1720635040764,-500.0,0.00032876,2]
[331683226,1720635040774,-500.0,0.00032876,7]
[331683227,1720635040783,-500.0,0.00032876,7]
[331683228,1720635040793,-640.86,0.00032876,7]
[331683229,1720635040802,-500.0,0.00032876,7]
[331683230,1720635040811,-500.0,0.00032876,2]
[331683231,1720635040820,-500.0,0.00032876,7]
[331683232,1720635040829,-516.38473904,0.00032876,7]
[331683233,1720635040838,-500.0,0.00032876,7]
[331683234,1720635040847,-564.74916678,0.00032876,7]
[331683235,1720635040856,-500.0,0.00032877,7]
[331683236,1720635040865,-500.0,0.00032877,7]
[331683237,1720635040875,-500.0,0.00032877,7]
[331683238,1720635040884,-500.0,0.00032877,7]
[331683239,1720635040894,-500.0,0.00032877,7]
[331683240,1720635040903,-177.655455,0.00032877,7]
[331683241,1720635040913,-306.0,0.00032877,2]
[331683242,1720635040922,-151.0,0.00032877,5]
[331683243,1720635040931,-600.0,0.00032928,2]
[331683244,1720635040941,-1318.58,0.00032939,2]
[331683245,1720635040950,-1318.58,0.00032939,2]
[331683246,1720635040959,-160.0,0.0003297,3]
[331683247,1720635040968,-366.48323855,0.00033,120]
[331683248,1720635040977,-292.55335768,0.00033,7]
[331683249,1720635040986,-150.0,0.000331,14]
[331683250,1720635040995,-1318.58,0.00033129,2]
[331683251,1720635041004,-1318.58,0.0003314,2]
[331683252,1720635041014,-1318.58,0.0003314,2]
[331683253,1720635041023,-1019.48,0.0003314,7]
[331683254,1720635041032,-1019.48,0.0003314,7]
[331683255,1720635041042,-1019.48,0.0003314,7]
[331683256,1720635041051,-122207.997954,0.0003314,4]
[331683257,1720635041061,-1318.58,0.00033149,2]
[331683258,1720635041070,-1318.58,0.00033149,2]
[331683259,1720635041079,-1019.48,0.00033149,7]
[331683260,1720635041088,-1019.48,0.00033149,7]
[331683261,1720635041097,-414.18440376,0.00033149,7]
[331683262,1720635041107,-154.74147722,0.00033149,7]
[331683263,1720635041116,-500.0,0.00033149,7]
[331683264,1720635041126,-155.74156135,0.00033149,7]
[331683265,1720635041135,-450.78055992,0.00033149,7]
[331683266,1720635041144,-500.0,0.00033149,7]
[331683267,1720635041154,-500.0,0.00033149,7]
[331683268,1720635041163,-500.0,0.00033149,7]
[331683269,1720635041172,-500.0,0.00033149,7]
[331683270,1720635041182,-500.0,0.00033149,7]
[331683271,1720635041191,-500.0,0.00033149,7]
[331683272,1720635041200,-500.0,0.00033149,7]
[331683273,1720635041210,-500.0,0.00033149,7]
[331683274,1720635041220,-500.0,0.00033149,7]
[331683275,1720635041230,-500.0,0.00033149,7]
[331683276,1720635041239,-500.0,0.00033149,7]
[331683277,1720635041249,-145.60260876,0.0003315,7]
[331683278,1720635041447,-365.73273308,0.0003315,7]
[331683279,1720635041458,-500.0,0.0003315,7]
[331683280,1720635041468,-500.0,0.0003315,7]
[331683281,1720635041478,-500.0,0.0003315,7]
[331683282,1720635041487,-500.0,0.0003315,7]
[331683283,1720635041497,-537.16736481,0.0003315,7]
[331683284,1720635041506,-500.0,0.0003315,7]
[331683285,1720635041515,-500.0,0.0003315,7]
[331683286,1720635041524,-575.79312381,0.0003315,7]
[331683287,1720635041554,-25.27687619,0.0003315,7]
[331683288,1720635041564,-310.63743191,0.0003315,7]
[331683289,1720635041573,-628.69109568,0.0003315,7]
[331683290,1720635041583,-500.0,0.0003315,7]
[331683291,1720635041592,-500.0,0.0003315,2]
[331683292,1720635041601,-500.0,0.0003315,7]
[331683293,1720635041610,-500.0,0.0003315,7]
[331683294,1720635041619,-690.4,0.0003315,7]
[331683295,1720635041628,-713.72,0.0003315,7]
[331683296,1720635041638,-500.0,0.0003315,7]
[331683297,1720635041647,-500.0,0.0003315,7]
[331683298,1720635041655,-500.0,0.0003315,7]
[331683299,1720635041665,-500.0,0.0003315,7]
[331683300,1720635041673,-500.0,0.0003315,7]
[331683301,1720635041683,-500.0,0.0003315,7]
[331683302,1720635041692,-500.0,0.0003315,7]
[331683303,1720635041701,-500.0,0.0003315,7]
[331683304,1720635041710,-500.0,0.0003315,7]
[331683305,1720635041723,-500.0,0.0003315,7]
[331683306,1720635041732,-500.0,0.0003315,7]
[331683307,1720635041742,-500.0,0.0003315,7]
[331683308,1720635041752,-500.0,0.0003315,7]
[331683309,1720635041761,-500.0,0.0003315,7]
[331683310,1720635041770,-500.0,0.0003315,7]
[331683311,1720635041780,-1003.29,0.0003315,7]
[331683312,1720635041789,-500.0,0.0003315,7]
[331683313,1720635041798,-500.0,0.0003315,7]
[331683314,1720635041808,-500.0,0.0003315,7]
[331683315,1720635041817,-1179.7,0.0003315,7]
[331683316,1720635041826,-500.0,0.0003315,7]
[331683317,1720635041836,-632.47655085,0.0003315,7]
[331683318,1720635041845,-500.0,0.0003315,7]
[331683319,1720635041854,-500.0,0.0003315,7]
[331683320,1720635041863,-2085.33,0.0003315,7]
[331683321,1720635041873,-500.0,0.0003315,7]
[331683322,1720635041882,-500.0,0.0003315,7]
[331683323,1720635041892,-500.0,0.0003315,7]
[331683324,1720635041901,-5071.86,0.0003315,7]
[331683325,1720635041910,-500.0,0.0003315,7]
[331683326,1720635041919,-500.0,0.0003315,7]
[331683327,1720635041928,-796.53,0.0003315,7]
[331683328,1720635041937,-500.0,0.0003315,7]
[331683329,1720635041946,-958.45,0.0003315,7]
[331683330,1720635041955,-500.0,0.0003315,7]
[331683331,1720635041964,-1500.0,0.0003315,7]
[331683332,1720635041973,-1085.46,0.0003315,7]
[331683333,1720635041982,-569.1,0.0003315,7]
[331683334,1720635041991,-1442.2,0.0003315,7]
[331683335,1720635042000,-839.66,0.0003315,7]
[331683336,1720635042009,-500.0,0.0003315,7]
[331683337,1720635042018,-714.71,0.0003315,7]
[331683338,1720635042028,-723.37,0.0003315,7]
[331683339,1720635042038,-552.09,0.0003315,7]
[331683340,1720635042047,-500.0,0.0003315,7]
[331683341,1720635042056,-500.0,0.0003315,7]
[331683342,1720635042065,-852.17,0.0003315,7]
[331683343,1720635042074,-500.0,0.0003315,7]
[331683344,1720635042084,-503.37845093,0.0003315,7]
[331683345,1720635042093,-500.0,0.0003315,7]
[331683346,1720635042103,-500.0,0.0003315,7]
[331683347,1720635042112,-541.11277977,0.0003315,7]
[331683348,1720635042121,-500.0,0.0003315,7]
[331683349,1720635042131,-500.0,0.0003315,7]
[331683350,1720635042140,-500.0,0.0003315,7]
[331683351,1720635042150,-631.13,0.0003315,7]
[331683352,1720635042160,-500.0,0.0003315,7]
[331683353,1720635042169,-500.0,0.0003315,7]
[331683354,1720635042179,-500.0,0.0003315,7]
[331683355,1720635042188,-500.0,0.0003315,7]
[331683356,1720635042198,-500.0,0.0003315,7]
[331683357,1720635042209,-3837.2,0.0003315,7]
[331683358,1720635042219,-485.08218269,0.0003315,7]
[331683359,1720635042230,-500.0,0.0003315,7]
[331683360,1720635042240,-2057.17,0.0003315,7]
[331683361,1720635042249,-500.0,0.0003315,7]
[331683362,1720635042259,-500.0,0.0003315,7]
[331683363,1720635042268,-655.71,0.0003315,7]
[331683364,1720635042277,-500.0,0.0003315,7]
[331683365,1720635042286,-500.0,0.0003315,7]
[331683366,1720635042295,-500.0,0.0003315,7]
[331683367,1720635042305,-500.0,0.0003315,7]
[331683368,1720635042314,-307.06316627,0.0003315,7]
[331683369,1720635042323,-1860.1,0.0003315,7]
[331683370,1720635042333,-3472.78,0.0003315,7]
[331683371,1720635042343,-873.33,0.0003315,7]
[331683372,1720635042353,-500.0,0.0003315,7]
[331683373,1720635042362,-10162.39,0.0003315,7]
[331683374,1720635042371,-500.0,0.0003315,7]
[331683375,1720635042380,-641.75,0.0003315,7]
[331683376,1720635042390,-679.38,0.0003315,7]
[331683377,1720635042399,-762.95,0.0003315,7]
[331683378,1720635042408,-1236.74,0.0003315,7]
[331683379,1720635042418,-500.0,0.0003315,7]
[331683380,1720635042427,-500.0,0.0003315,2]
[331683381,1720635042437,-703.62,0.0003315,7]
[331683382,1720635042447,-500.0,0.0003315,7]
[331683383,1720635042458,-500.0,0.0003315,7]
[331683384,1720635042472,-2011.79,0.0003315,4]
[331683385,1720635042482,-500.0,0.0003315,2]
[331683386,1720635042492,-500.0,0.0003315,2]
[331683387,1720635042501,-640.86,0.0003315,7]
[331683388,1720635042511,-500.0,0.0003315,7]
[331683389,1720635042520,-500.0,0.0003315,2]
[331683390,1720635042529,-366.6405652,0.00033163,2]
[331683391,1720635042539,-600.0,0.00033271,2]
[331683392,1720635042548,-196.961036,0.00033295,2]
[331683393,1720635042558,-500.0,0.000333,120]
[331683394,1720635042567,-443.96,0.000333,120]
[331683395,1720635042577,-5292.88975486,0.00033301,2]
[331683396,1720635042587,-1318.58,0.00033399,2]
[331683397,1720635042596,-1318.58,0.00033399,2]
[331683398,1720635042606,-1019.48,0.00033399,7]
[331683399,1720635042615,-152.197614,0.000334,7]
[331683400,1720635042625,-151.0,0.000334,7]
[331683401,1720635042635,-151.0,0.000334,7]
[331683402,1720635042644,-151.0,0.000334,7]
[331683403,1720635042653,-151.0,0.000334,7]
[331683404,1720635042663,-151.0,0.000334,7]
[331683405,1720635042672,-151.0,0.000334,7]
[331683407,1720635042681,-151.0,0.000334,7]
[331683409,1720635042691,-1318.58,0.00033423,2]
[331683410,1720635042703,-1318.58,0.00033423,2]
[331683412,1720635042713,-1318.58,0.00033423,2]
[331683414,1720635042724,-1318.58,0.00033423,2]
[331683416,1720635042733,-1318.72481392,0.00033423,2]
[331683417,1720635042742,-1019.48,0.00033423,7]
[331683418,1720635042751,-1019.48,0.00033423,7]
[331683419,1720635042761,-1019.48,0.00033423,7]
[331683420,1720635042770,-1019.48,0.00033423,7]
[331683422,1720635042779,-1019.4830572,0.00033423,7]
[331683424,1720635042789,-500.0,0.00033424,7]
[331683427,1720635042798,-500.0,0.00033424,7]
[331683430,1720635042808,-500.0,0.00033424,7]
[331683433,1720635042818,-500.0,0.00033424,7]
[331683435,1720635042827,-500.0,0.00033424,7]
[331683437,1720635042837,-500.0,0.00033424,7]
[331683439,1720635042846,-601.07,0.00033424,7]
[331683441,1720635042856,-500.0,0.00033424,7]
[331683445,1720635042865,-500.0,0.00033424,2]
[331683446,1720635042874,-500.0,0.00033424,7]
[331683450,1720635042884,-500.0,0.00033424,7]
[331683454,1720635042893,-690.4,0.00033424,7]
[331683457,1720635042902,-713.72,0.00033424,7]
[331683459,1720635042911,-500.0,0.00033424,7]
[331683461,1720635042920,-500.0,0.00033424,7]
[331683463,1720635042930,-500.0,0.00033424,7]
[331683465,1720635042940,-228.13540239,0.00033424,7]
[331683467,1720635042952,-500.0,0.00033424,7]
[331683469,1720635042962,-248.66485009,0.00033424,7]
[331683472,1720635042972,-500.0,0.00033424,7]
[331683474,1720635042982,-500.0,0.00033424,7]
[331683476,1720635042993,-500.0,0.00033424,7]
[331683478,1720635043005,-500.0,0.00033424,7]
[331683480,1720635043015,-500.0,0.00033424,7]
[331683482,1720635043025,-500.0,0.00033424,7]
[331683484,1720635043035,-500.0,0.00033424,7]
[331683486,1720635043045,-500.0,0.00033424,7]
[331683488,1720635043055,-500.0,0.00033424,7]
[331683490,1720635043065,-1003.29,0.00033424,7]
[331683492,1720635043076,-500.0,0.00033424,7]
[331683494,1720635043086,-500.0,0.00033424,7]
[331683495,1720635043096,-500.0,0.00033424,7]
[331683496,1720635043107,-1179.7,0.00033424,7]
[331683497,1720635043117,-500.0,0.00033424,7]
[331683500,1720635043127,-500.0,0.00033424,7]
[331683502,1720635043136,-500.0,0.00033424,7]
[331683504,1720635043146,-2085.33,0.00033424,7]
[331683505,1720635043155,-500.0,0.00033424,7]
[331683506,1720635043165,-500.0,0.00033424,7]
[331683507,1720635043175,-500.0,0.00033424,7]
[331683508,1720635043185,-5071.86,0.00033424,7]
[331683509,1720635043195,-500.0,0.00033424,7]
[331683510,1720635043207,-500.0,0.00033424,7]
[331683511,1720635043221,-796.53,0.00033424,7]
[331683512,1720635043231,-500.0,0.00033424,7]
[331683514,1720635043241,-958.45,0.00033424,7]
[331683515,1720635043250,-500.0,0.00033424,7]
[331683516,1720635043261,-1500.0,0.00033424,7]
[331683517,1720635043270,-1085.46,0.00033424,7]
[331683518,1720635043280,-569.1,0.00033424,7]
[331683519,1720635043290,-1442.2,0.00033424,7]
[331683520,1720635043299,-839.66,0.00033424,7]
[331683521,1720635043308,-500.0,0.00033424,7]
[331683522,1720635043318,-714.71,0.00033424,7]
[331683523,1720635043327,-723.37,0.00033424,7]
[331683524,1720635043337,-552.09,0.00033424,7]
[331683525,1720635043347,-500.0,0.00033424,7]
[331683526,1720635043357,-151.0,0.00033424,7]
[331683527,1720635043367,-500.0,0.00033424,7]
[331683528,1720635043376,-852.17,0.00033424,7]
[331683529,1720635043386,-500.0,0.00033424,7]
[331683530,1720635043396,-500.0,0.00033424,7]
[331683531,1720635043405,-151.0,0.00033424,7]
[331683532,1720635043415,-500.0,0.00033424,7]
[331683533,1720635043424,-151.0,0.00033424,7]
[331683534,1720635043434,-500.0,0.00033424,7]
[331683535,1720635043540,-151.0,0.00033424,2]
[331683536,1720635043550,-500.0,0.00033424,7]
[331683537,1720635043560,-151.0,0.00033424,2]
[331683538,1720635043570,-500.0,0.00033424,7]
[331683539,1720635043579,-151.0,0.00033424,7]
[331683540,1720635043589,-151.0,0.00033424,7]
[331683541,1720635043598,-631.13,0.00033424,7]
[331683542,1720635043607,-208.918547,0.00033424,7]
[331683543,1720635043617,-483.34975391,0.00033424,7]
[331683544,1720635043628,-151.0,0.00033424,7]
[331683545,1720635043637,-208.918547,0.00033424,7]
[331683546,1720635043647,-500.0,0.00033424,7]
[331683547,1720635043656,-151.0,0.00033424,7]
[331683548,1720635043665,-500.0,0.00033424,7]
[331683549,1720635043674,-151.0,0.00033424,7]
[331683550,1720635043684,-151.0,0.00033424,7]
[331683551,1720635043693,-404.9595,0.00033424,7]
[331683552,1720635043703,-500.0,0.00033424,7]
[331683553,1720635043712,-517.776789,0.00033424,7]
[331683554,1720635043721,-500.0,0.00033424,7]
[331683555,1720635043731,-404.9595,0.00033424,7]
[331683556,1720635043740,-517.776789,0.00033424,7]
[331683557,1720635043749,-3837.2,0.00033424,7]
[331683558,1720635043758,-165.895504,0.00033424,7]
[331683559,1720635043767,-151.0,0.00033424,7]
[331683560,1720635043776,-500.0,0.00033424,7]
[331683561,1720635043786,-2057.17,0.00033424,7]
[331683562,1720635043795,-536.6132868,0.00033424,7]
[331683563,1720635043804,-500.0,0.00033424,7]
[331683564,1720635043813,-655.71,0.00033424,7]
[331683565,1720635043823,-553.60874357,0.00033424,7]
[331683566,1720635043832,-652.438002,0.00033424,7]
[331683567,1720635043842,-652.438002,0.00033424,7]
[331683568,1720635043851,-500.0,0.00033424,7]
[331683569,1720635043860,-208.754089,0.00033424,7]
[331683570,1720635043869,-500.0,0.00033424,7]
[331683571,1720635043879,-208.754089,0.00033424,7]
[331683572,1720635043888,-500.0,0.00033424,7]
[331683573,1720635043897,-151.0,0.00033424,7]
[331683574,1720635043906,-1860.1,0.00033424,7]
[331683575,1720635043916,-156.270022,0.00033424,7]
[331683576,1720635043925,-3472.78,0.00033424,7]
[331683577,1720635043935,-151.0,0.00033424,7]
[331683578,1720635043946,-873.33,0.00033424,7]
[331683579,1720635043955,-908.847334,0.00033424,7]
[331683580,1720635043964,-500.0,0.00033424,7]
[331683581,1720635043973,-10162.39,0.00033424,7]
[331683582,1720635043983,-908.847334,0.00033424,7]
[331683583,1720635043992,-500.0,0.00033424,7]
[331683584,1720635044002,-641.75,0.00033424,7]
[331683585,1720635044011,-270.409468,0.00033424,7]
[331683586,1720635044021,-679.38,0.00033424,7]
[331683587,1720635044030,-151.0,0.00033424,7]
[331683588,1720635044039,-270.409468,0.00033424,7]
[331683589,1720635044048,-151.0,0.00033424,7]
[331683590,1720635044058,-151.0,0.00033424,7]
[331683591,1720635044067,-151.0,0.00033424,7]
[331683592,1720635044076,-762.95,0.00033424,7]
[331683593,1720635044087,-1236.74,0.00033424,7]
[331683594,1720635044096,-3171.777757,0.00033424,7]
[331683595,1720635044105,-917.635366,0.00033424,7]
[331683596,1720635044115,-500.0,0.00033424,7]
[331683597,1720635044124,-3171.777757,0.00033424,7]
[331683598,1720635044133,-500.0,0.00033424,2]
[331683599,1720635044142,-917.635366,0.00033424,7]
[331683600,1720635044152,-697.269872,0.00033424,7]
[331683601,1720635044161,-703.62,0.00033424,7]
[331683602,1720635044170,-500.0,0.00033424,7]
[331683603,1720635044179,-697.269872,0.00033424,7]